fUSD/lending_fUSD_20240116
["ID","MTS","AMOUNT","RATE_DAILY","PERIOD"]
[311761380,1705380659201,-993.65,0.00022702,2]
[311761381,1705380659211,-500.0,0.00022702,2]
[311761382,1705380659221,-500.0,0.00022702,2]
[311761383,1705380659231,-614.03,0.00022702,2]
[311761384,1705380659241,-500.0,0.00022702,2]
[311761385,1705380659252,-587.81,0.00022702,2]
[311761386,1705380659261,-522.85,0.00022702,2]
[311761387,1705380659271,-500.0,0.00022702,2]
[311761388,1705380659283,-2389.39,0.00022702,2]
[311761389,1705380659294,-543.49,0.00022702,2]
[311761390,1705380659304,-500.0,0.00022702,2]
[311761391,1705380659314,-1081.7,0.00022702,2]
[311761392,1705380659324,-657.09,0.00022702,2]
[311761393,1705380659333,-500.0,0.00022702,2]
[311761394,1705380659342,-1299.66,0.00022702,2]
[311761395,1705380659351,-615.43,0.00022702,2]
[311761396,1705380659361,-1083.17,0.00022702,2]
[311761397,1705380659370,-646.08,0.00022702,2]
[311761398,1705380659380,-500.0,0.00022702,2]
[311761399,1705380659390,-935.42,0.00022702,2]
[311761400,1705380659400,-2304.96,0.00022702,2]
[311761401,1705380659409,-500.0,0.00022702,2]
[311761402,1705380659419,-977.51,0.00022702,2]
[311761403,1705380659429,-500.0,0.00022702,2]
[311761404,1705380659438,-1035.2,0.00022702,2]
[311761405,1705380659448,-556.48,0.00022702,2]
[311761406,1705380659458,-500.0,0.00022702,2]
[311761407,1705380659468,-3757.23,0.00022702,2]
[311761408,1705380659478,-500.0,0.00022702,2]
[311761409,1705380659487,-2601.27,0.00022702,2]
[311761410,1705380659497,-2536.53,0.00022702,2]
[311761411,1705380659506,-659.02,0.00022702,2]
[311761412,1705380659515,-500.0,0.00022702,2]
[311761413,1705380659526,-777.74,0.00022702,2]
[311761414,1705380659535,-3180.17,0.00022702,2]
[311761415,1705380659545,-5214.22,0.00022702,2]
[311761416,1705380659554,-500.0,0.00022702,2]
[311761417,1705380659563,-2275.53,0.00022702,2]
[311761418,1705380659573,-1093.3,0.00022702,2]
[311761419,1705380659583,-1447.13,0.00022702,2]
[311761420,1705380659593,-500.0,0.00022702,2]
[311761421,1705380659602,-1554.44,0.00022702,2]
[311761422,1705380659612,-150.0,0.00022702,2]
[311761423,1705380659625,-6597.71,0.00022702,2]
[311761424,1705380659634,-617.99,0.00022702,2]
[311761425,1705380659644,-532.27,0.00022702,2]
[311761426,1705380659654,-500.0,0.00022702,2]
[311761427,1705380659664,-500.0,0.00022702,2]
[311761428,1705380659674,-4124.75,0.00022702,2]
[311761429,1705380659683,-1227.63,0.00022702,2]
[311761430,1705380659693,-548.61,0.00022702,2]
[311761431,1705380659702,-568.72,0.00022702,2]
[311761432,1705380659712,-500.0,0.00022702,2]
[311761433,1705380659722,-3614.61,0.00022702,2]
[311761434,1705380659731,-5318.17,0.00022702,2]
[311761435,1705380659741,-531.15,0.00022702,2]
[311761436,1705380659751,-3136.35,0.00022702,2]
[311761437,1705380659761,-1222.52,0.00022702,2]
[311761438,1705380660098,-19226.91,0.00022702,2]
[311761439,1705380660164,-649.7,0.00022702,2]
[311761440,1705380660174,-3280.96,0.00022702,2]
[311761441,1705380660184,-1945.31,0.00022702,2]
[311761442,1705380660194,-8446.63,0.00022702,2]
[311761443,1705380660204,-1038.84,0.00022702,2]
[311761444,1705380660213,-500.0,0.00022702,2]
[311761445,1705380660223,-1540.49,0.00022702,2]
[311761446,1705380660233,-3043.7,0.00022702,2]
[311761447,1705380660243,-1831.93,0.00022702,2]
[311761448,1705380660254,-775.24,0.00022702,2]
[311761449,1705380660264,-2922.32,0.00022702,2]
[311761450,1705380660274,-500.0,0.00022702,2]
[311761451,1705380660285,-614.88,0.00022702,2]
[311761452,1705380660295,-905.14,0.00022702,2]
[311761453,1705380660307,-500.0,0.00022702,2]
[311761454,1705380660317,-500.0,0.00022702,2]
[311761455,1705380660327,-1389.73,0.00022702,2]
[311761456,1705380660337,-500.0,0.00022702,2]
[311761457,1705380660347,-968.52,0.00022702,2]
[311761458,1705380660357,-500.0,0.00022702,2]
[311761459,1705380660367,-2463.87,0.00022702,2]
[311761460,1705380660378,-500.0,0.00022702,2]
[311761461,1705380660387,-500.0,0.00022702,2]
[311761462,1705380660397,-500.0,0.00022702,2]
[311761463,1705380660407,-956.57,0.00022702,2]
[311761464,1705380660417,-500.0,0.00022702,2]
[311761465,1705380660427,-547.98,0.00022702,2]
[311761466,1705380660436,-1252.9,0.00022702,2]
[311761467,1705380660446,-5094.69,0.00022702,2]
[311761468,1705380660456,-2369.57,0.00022702,2]
[311761469,1705380660466,-500.0,0.00022702,2]
[311761470,1705380660476,-1084.91,0.00022702,2]
[311761471,1705380660486,-551.6,0.00022702,2]
[311761472,1705380660495,-500.0,0.00022702,2]
[311761473,1705380660505,-3045.89,0.00022702,2]
[311761474,1705380660514,-676.94,0.00022702,2]
[311761475,1705380660524,-619.22,0.00022702,2]
[311761476,1705380660536,-1115.49,0.00022702,2]
[311761477,1705380660546,-1872.74,0.00022702,2]
[311761478,1705380660555,-3553.28,0.00022702,2]
[311761479,1705380660565,-1459.34,0.00022702,2]
[311761480,1705380660575,-500.0,0.00022702,5]
[311761481,1705380660584,-500.0,0.00022702,2]
[311761482,1705380660594,-500.0,0.00022702,2]
[311761483,1705380660604,-2913.93,0.00022702,2]
[311761484,1705380660613,-3099.47,0.00022702,2]
[311761485,1705380660623,-651.7,0.00022702,2]
[311761486,1705380660633,-500.0,0.00022702,2]
[311761487,1705380660642,-500.0,0.00022702,2]
[311761488,1705380660652,-500.0,0.00022702,2]
[311761489,1705380660662,-1205.66,0.00022702,2]
[311761490,1705380660672,-500.0,0.00022702,2]
[311761491,1705380660681,-500.0,0.00022702,2]
[311761492,1705380660691,-566.98,0.00022702,2]
[311761493,1705380660700,-3272.08,0.00022702,2]
[311761494,1705380660710,-1146.36,0.00022702,2]
[311761495,1705380660719,-1171.02,0.00022702,2]
[311761496,1705380660729,-779.81,0.00022702,2]
[311761497,1705380660738,-500.0,0.00022702,2]
[311761498,1705380660747,-713.99,0.00022702,2]
[311761499,1705380660757,-4567.13,0.00022702,2]
[311761500,1705380660767,-1286.39,0.00022702,2]
[311761501,1705380660778,-500.0,0.00022702,2]
[311761502,1705380660788,-702.86,0.00022702,2]
[311761503,1705380660797,-2349.0,0.00022702,2]
[311761504,1705380660808,-3520.98,0.00022702,2]
[311761505,1705380660820,-1869.78,0.00022702,2]
[311761506,1705380660830,-3797.27,0.00022702,2]
[311761507,1705380660840,-500.0,0.00022702,2]
[311761508,1705380660850,-500.0,0.00022702,2]
[311761509,1705380660859,-1862.53,0.00022702,2]
[311761510,1705380660869,-1190.13,0.00022702,2]
[311761511,1705380660879,-1370.56,0.00022702,2]
[311761512,1705380660889,-1646.0,0.00022702,2]
[311761513,1705380660900,-1472.45,0.00022702,2]
[311761514,1705380660913,-1338.01,0.00022702,2]
[311761515,1705380660923,-1373.8,0.00022702,2]
[311761516,1705380660933,-630.71,0.00022702,2]
[311761517,1705380660943,-1849.0,0.00022702,2]
[311761518,1705380660954,-500.0,0.00022702,2]
[311761519,1705380660965,-500.0,0.00022703,2]
[311761520,1705380660975,-500.0,0.00022703,2]
[311761521,1705380660984,-500.0,0.00022703,2]
[311761522,1705380660994,-500.0,0.00022703,2]
[311761523,1705380661003,-500.0,0.00022703,2]
[311761524,1705380661013,-500.0,0.00022703,2]
[311761525,1705380661022,-500.0,0.00022703,2]
[311761526,1705380661034,-500.0,0.00022703,2]
[311761527,1705380661043,-500.0,0.00022703,2]
[311761528,1705380661052,-500.0,0.00022703,2]
[311761529,1705380661061,-500.0,0.00022703,2]
[311761530,1705380661071,-500.0,0.00022703,2]
[311761531,1705380661080,-500.0,0.00022703,2]
[311761532,1705380661089,-500.0,0.00022703,2]
[311761533,1705380661098,-500.0,0.00022703,2]
[311761534,1705380661107,-500.0,0.00022703,2]
[311761535,1705380661117,-580.92,0.00022703,2]
[311761536,1705380661126,-500.0,0.00022703,2]
[311761537,1705380661136,-500.0,0.00022703,2]
[311761538,1705380661146,-500.0,0.00022703,2]
[311761539,1705380661155,-210.15382244,0.00022703,2]
[311761540,1705380661166,-500.0,0.00022703,2]
[311761541,1705380661176,-500.0,0.00022703,2]
[311761542,1705380661186,-500.0,0.00022703,2]
[311761543,1705380661196,-500.0,0.00022703,2]
[311761544,1705380661206,-500.0,0.00022703,2]
[311761545,1705380661215,-500.0,0.00022703,2]
[311761546,1705380661225,-570.69,0.00022703,2]
[311761547,1705380661235,-500.0,0.00022703,2]
[311761548,1705380661245,-500.0,0.00022703,2]
[311761549,1705380661255,-500.0,0.00022703,2]
[311761550,1705380661265,-509.42,0.00022703,2]
[311761551,1705380661277,-500.0,0.00022703,2]
[311761552,1705380661287,-500.0,0.00022703,2]
[311761553,1705380661297,-500.0,0.00022703,2]
[311761554,1705380661307,-500.0,0.00022703,2]
[311761555,1705380661316,-537.81,0.00022703,2]
[311761556,1705380661327,-516.89,0.00022703,2]
[311761557,1705380661337,-500.0,0.00022703,2]
[311761558,1705380661346,-500.0,0.00022703,2]
[311761559,1705380661356,-500.0,0.00022703,2]
[311761560,1705380661366,-500.0,0.00022703,2]
[311761561,1705380661376,-526.88,0.00022703,2]
[311761562,1705380661386,-500.0,0.00022703,2]
[311761563,1705380661396,-500.0,0.00022703,2]
[311761564,1705380661406,-269.45330703,0.00022703,2]
[311761565,1705380661417,-500.0,0.00022703,2]
[311761566,1705380661427,-500.0,0.00022703,2]
[311761567,1705380661437,-500.0,0.00022703,2]
[311761568,1705380661446,-500.0,0.00022703,2]
[311761569,1705380661456,-500.0,0.00022703,2]
[311761570,1705380661466,-500.0,0.00022703,2]
[311761571,1705380661476,-500.0,0.00022703,2]
[311761572,1705380661486,-500.0,0.00022703,2]
[311761573,1705380661495,-516.63,0.00022703,2]
[311761574,1705380661506,-187.17891875,0.00022703,2]
[311761575,1705380661515,-500.0,0.00022703,2]
[311761576,1705380661525,-500.0,0.00022703,2]
[311761577,1705380661536,-879.01,0.00022703,2]
[311761578,1705380661545,-500.0,0.00022703,2]
[311761579,1705380661554,-500.0,0.00022703,2]
[311761580,1705380661564,-504.63,0.00022703,2]
[311761581,1705380661574,-500.0,0.00022703,2]
[311761582,1705380661583,-500.0,0.00022703,2]
[311761583,1705380661593,-168.0699112,0.00022703,2]
[311761584,1705380661603,-500.0,0.00022703,2]
[311761585,1705380661612,-500.0,0.00022703,2]
[311761586,1705380661622,-647.17,0.00022703,2]
[311761587,1705380661632,-500.0,0.00022703,2]
[311761588,1705380661642,-500.0,0.00022703,2]
[311761589,1705380661652,-500.0,0.00022703,2]
[311761590,1705380661661,-704.19,0.00022703,2]
[311761591,1705380661671,-500.0,0.00022703,2]
[311761592,1705380661681,-744.68,0.00022703,2]
[311761593,1705380661691,-500.0,0.00022703,2]
[311761594,1705380661701,-647.2,0.00022703,2]
[311761595,1705380661711,-500.0,0.00022703,2]
[311761596,1705380661721,-500.0,0.00022703,2]
[311761597,1705380661731,-693.3,0.00022703,2]
[311761598,1705380661741,-500.0,0.00022703,2]
[311761599,1705380661750,-500.0,0.00022703,2]
[311761600,1705380661760,-500.0,0.00022703,2]
[311761601,1705380661769,-583.12,0.00022703,2]
[311761602,1705380661779,-500.0,0.00022703,2]
[311761603,1705380661789,-500.0,0.00022703,2]
[311761604,1705380661799,-500.0,0.00022703,2]
[311761605,1705380661808,-850.87,0.00022703,2]
[311761606,1705380661818,-907.19,0.00022703,2]
[311761607,1705380661827,-500.0,0.00022703,2]
[311761608,1705380661837,-500.0,0.00022703,2]
[311761609,1705380661848,-500.0,0.00022703,2]
[311761610,1705380661858,-500.0,0.00022703,2]
[311761611,1705380661867,-500.0,0.00022703,2]
[311761612,1705380661877,-557.78,0.00022703,2]
[311761613,1705380661887,-500.0,0.00022703,2]
[311761614,1705380661897,-548.1,0.00022703,2]
[311761615,1705380661911,-500.0,0.00022703,2]
[311761616,1705380661923,-712.58,0.00022703,2]
[311761617,1705380661933,-500.0,0.00022703,2]
[311761618,1705380661942,-619.77,0.00022703,2]
[311761619,1705380661952,-583.17316334,0.00022703,2]
[311761620,1705380661961,-500.0,0.00022703,2]
[311761621,1705380661971,-500.0,0.00022703,2]
[311761622,1705380661980,-500.0,0.00022703,2]
[311761623,1705380661990,-511.89,0.00022703,2]
[311761624,1705380662000,-728.31,0.00022703,2]
[311761625,1705380662010,-530.26,0.00022703,2]
[311761626,1705380662019,-500.0,0.00022703,2]
[311761627,1705380662029,-500.0,0.00022703,2]
[311761628,1705380662039,-500.0,0.00022703,2]
[311761629,1705380662049,-500.0,0.00022703,2]
[311761630,1705380662059,-898.64,0.00022703,2]
[311761631,1705380662069,-532.19,0.00022703,2]
[311761632,1705380662080,-500.0,0.00022703,2]
[311761633,1705380662091,-500.0,0.00022703,2]
[311761634,1705380662101,-546.41,0.00022703,2]
[311761635,1705380662112,-500.0,0.00022703,2]
[311761636,1705380662122,-500.0,0.00022703,2]
[311761637,1705380662136,-592.11,0.00022703,2]
[311761638,1705380662147,-583.83,0.00022703,2]
[311761639,1705380662157,-500.0,0.00022703,2]
[311761640,1705380662168,-625.15,0.00022703,2]
[311761641,1705380662179,-654.81,0.00022703,2]
[311761642,1705380662190,-500.0,0.00022703,2]
[311761643,1705380662200,-500.0,0.00022703,2]
[311761644,1705380662211,-790.0,0.00022703,2]
[311761645,1705380662221,-500.0,0.00022703,2]
[311761646,1705380662231,-500.0,0.00022703,2]
[311761647,1705380662241,-500.0,0.00022703,2]
[311761648,1705380662251,-929.51,0.00022703,2]
[311761649,1705380662261,-500.0,0.00022703,2]
[311761650,1705380662272,-500.0,0.00022703,2]
[311761651,1705380662283,-706.16,0.00022703,2]
[311761652,1705380662293,-500.0,0.00022703,2]
[311761653,1705380662302,-500.0,0.00022703,2]
[311761654,1705380662312,-500.0,0.00022703,2]
[311761655,1705380662321,-512.16,0.00022703,2]
[311761656,1705380662331,-500.0,0.00022703,2]
[311761657,1705380662341,-500.0,0.00022703,2]
[311761658,1705380662350,-712.01,0.00022703,2]
[311761659,1705380662360,-500.0,0.00022703,2]
[311761660,1705380662370,-500.0,0.00022703,2]
[311761661,1705380662380,-659.3,0.00022703,2]
[311761662,1705380662389,-500.0,0.00022703,2]
[311761663,1705380662399,-500.0,0.00022703,2]
[311761664,1705380662408,-500.0,0.00022703,2]
[311761665,1705380662419,-500.0,0.00022703,2]
[311761666,1705380662429,-883.21,0.00022703,2]
[311761667,1705380662439,-500.0,0.00022703,2]
[311761668,1705380662449,-500.0,0.00022703,2]
[311761669,1705380662459,-250.0,0.00022703,2]
[311761670,1705380662468,-1334.99,0.00022703,2]
[311761671,1705380662478,-500.0,0.00022703,2]
[311761672,1705380662487,-500.0,0.00022703,2]
[311761673,1705380662497,-500.0,0.00022703,2]
[311761674,1705380662507,-500.0,0.00022703,2]
[311761675,1705380662517,-500.0,0.00022703,2]
[311761676,1705380662526,-559.51,0.00022703,2]
[311761677,1705380662536,-500.0,0.00022703,2]
[311761678,1705380662546,-500.0,0.00022703,2]
[311761679,1705380662638,-538.28,0.00022703,2]
[311761680,1705380662648,-500.0,0.00022703,2]
[311761681,1705380662658,-823.68,0.00022703,2]
[311761682,1705380662667,-500.0,0.00022703,2]
[311761683,1705380662676,-500.0,0.00022703,2]
[311761684,1705380662685,-604.99,0.00022703,2]
[311761685,1705380662694,-655.62,0.00022703,2]
[311761686,1705380662704,-500.0,0.00022703,2]
[311761687,1705380662713,-500.0,0.00022703,2]
[311761688,1705380662722,-500.0,0.00022703,2]
[311761689,1705380662731,-1197.81,0.00022703,2]
[311761690,1705380662742,-661.85,0.00022703,2]
[311761691,1705380662751,-568.67,0.00022703,2]
[311761692,1705380662760,-538.07,0.00022703,2]
[311761693,1705380662770,-656.35,0.00022703,2]
[311761694,1705380662779,-1368.32,0.00022703,2]
[311761695,1705380662791,-500.0,0.00022703,2]
[311761696,1705380662801,-593.64,0.00022703,2]
[311761697,1705380662810,-605.25,0.00022703,2]
[311761698,1705380662821,-1129.36,0.00022703,2]
[311761699,1705380662830,-579.32,0.00022703,2]
[311761700,1705380662840,-500.0,0.00022703,2]
[311761701,1705380662850,-889.63,0.00022703,2]
[311761702,1705380662859,-531.95,0.00022703,2]
[311761703,1705380662869,-780.16,0.00022703,2]
[311761704,1705380662879,-678.44,0.00022703,2]
[311761705,1705380662889,-1119.83,0.00022703,2]
[311761706,1705380662899,-500.0,0.00022703,2]
[311761707,1705380662909,-623.48988437,0.00022703,2]
[311761708,1705380662923,-259.4509621,0.00022703,2]
[311761709,1705380662932,-171.38714942,0.00022703,2]
[311761710,1705380662942,-717.93,0.00022703,2]
[311761711,1705380662951,-528.69,0.00022703,2]
[311761712,1705380662960,-2645.49,0.00022703,2]
[311761713,1705380662970,-500.0,0.00022703,2]
[311761714,1705380662979,-863.64,0.00022703,2]
[311761715,1705380662990,-1235.02,0.00022703,2]
[311761716,1705380662999,-777.79,0.00022703,2]
[311761717,1705380663009,-500.0,0.00022703,2]
[311761718,1705380663019,-500.0,0.00022703,2]
[311761719,1705380663028,-715.84,0.00022703,2]
[311761720,1705380663037,-500.0,0.00022703,2]
[311761721,1705380663047,-763.41,0.00022703,2]
[311761722,1705380663057,-616.9,0.00022703,2]
[311761723,1705380663067,-308.89200509,0.00022703,2]
[311761724,1705380663076,-500.0,0.00022703,2]
[311761725,1705380663086,-775.16,0.00022703,2]
[311761726,1705380663096,-500.0,0.00022703,2]
[311761727,1705380663106,-799.85,0.00022703,2]
[311761728,1705380663116,-661.57,0.00022703,2]
[311761729,1705380663126,-500.0,0.00022703,2]
[311761730,1705380663135,-989.54,0.00022703,2]
[311761731,1705380663146,-500.0,0.00022703,2]
[311761732,1705380663156,-1115.63,0.00022703,2]
[311761733,1705380663165,-924.54,0.00022703,2]
[311761734,1705380663175,-590.65,0.00022703,2]
[311761735,1705380663185,-512.47,0.00022703,2]
[311761736,1705380663195,-880.67,0.00022703,2]
[311761737,1705380663205,-1158.48,0.00022703,2]
[311761738,1705380663214,-568.53,0.00022703,2]
[311761739,1705380663225,-634.54,0.00022703,2]
[311761740,1705380663235,-715.73,0.00022703,2]
[311761741,1705380663244,-500.0,0.00022703,2]
[311761742,1705380663254,-825.17,0.00022703,2]
[311761743,1705380663265,-985.57,0.00022703,2]
[311761744,1705380663275,-708.72,0.00022703,2]
[311761745,1705380663285,-500.0,0.00022703,2]
[311761746,1705380663295,-572.43,0.00022703,2]
[311761747,1705380663306,-3421.96,0.00022703,2]
[311761748,1705380663315,-500.0,0.00022703,2]
[311761749,1705380663325,-751.5,0.00022703,2]
[311761750,1705380663335,-500.0,0.00022703,2]
[311761751,1705380663344,-810.33,0.00022703,2]
[311761752,1705380663353,-628.73,0.00022703,2]
[311761753,1705380663363,-500.0,0.00022703,2]
[311761754,1705380663372,-822.65,0.00022703,2]
[311761755,1705380663381,-1021.6,0.00022703,2]
[311761756,1705380663391,-500.0,0.00022703,2]
[311761757,1705380663400,-1615.85,0.00022703,2]
[311761758,1705380663410,-984.0,0.00022703,2]
[311761759,1705380663420,-518.18,0.00022703,2]
[311761760,1705380663429,-655.96,0.00022703,2]
[311761761,1705380663439,-936.29,0.00022703,2]
[311761762,1705380663448,-1102.22,0.00022703,2]
[311761763,1705380663457,-1122.26,0.00022703,2]
[311761764,1705380663466,-1033.16,0.00022703,2]
[311761765,1705380663476,-695.72,0.00022703,2]
[311761766,1705380663486,-1914.45,0.00022703,2]
[311761767,1705380663495,-885.66,0.00022703,2]
[311761768,1705380663504,-500.0,0.00022703,2]
[311761769,1705380663514,-598.92,0.00022703,2]
[311761770,1705380663523,-867.6,0.00022703,2]
[311761771,1705380663533,-500.0,0.00022703,2]
[311761772,1705380663542,-673.92,0.00022703,2]
[311761773,1705380663551,-888.01,0.00022703,2]
[311761774,1705380663561,-2466.52,0.00022703,2]
[311761775,1705380663570,-808.68,0.00022703,2]
[311761776,1705380663579,-500.0,0.00022703,2]
[311761777,1705380663588,-680.43,0.00022703,2]
[311761778,1705380663598,-631.13,0.00022703,2]
[311761779,1705380663608,-1336.7,0.00022703,2]
[311761780,1705380663617,-789.82,0.00022703,2]
[311761781,1705380663626,-555.51,0.00022703,2]
[311761782,1705380663635,-500.0,0.00022703,2]
[311761783,1705380663644,-500.0,0.00022703,2]
[311761784,1705380663655,-773.72,0.00022703,2]
[311761785,1705380663666,-500.0,0.00022703,2]
[311761786,1705380663675,-707.02,0.00022703,2]
[311761787,1705380663684,-660.89,0.00022703,2]
[311761788,1705380663694,-500.0,0.00022703,2]
[311761789,1705380663703,-723.61,0.00022703,2]
[311761790,1705380663712,-500.0,0.00022703,2]
[311761791,1705380663721,-585.84,0.00022703,2]
[311761792,1705380663731,-500.0,0.00022703,2]
[311761793,1705380663740,-500.0,0.00022703,2]
[311761794,1705380663750,-500.0,0.00022703,2]
[311761795,1705380663759,-512.7,0.00022703,2]
[311761796,1705380663768,-1520.84,0.00022703,2]
[311761797,1705380663777,-500.0,0.00022703,2]
[311761798,1705380663786,-500.0,0.00022703,2]
[311761799,1705380663796,-563.88,0.00022703,2]
[311761800,1705380663805,-732.4,0.00022703,2]
[311761801,1705380663814,-500.0,0.00022703,2]
[311761802,1705380663824,-670.96,0.00022703,2]
[311761803,1705380663833,-984.89,0.00022703,2]
[311761804,1705380663842,-500.0,0.00022703,2]
[311761805,1705380663851,-872.2,0.00022703,2]
[311761806,1705380663861,-500.0,0.00022703,2]
[311761807,1705380663870,-500.0,0.00022703,2]
[311761808,1705380663880,-1569.9,0.00022703,2]
[311761809,1705380663890,-500.0,0.00022703,2]
[311761810,1705380663899,-748.19,0.00022703,2]
[311761811,1705380663909,-1113.97,0.00022703,2]
[311761812,1705380663923,-504.2,0.00022703,2]
[311761813,1705380663932,-500.0,0.00022703,2]
[311761814,1705380663941,-500.0,0.00022703,2]
[311761815,1705380663950,-500.0,0.00022703,2]
[311761816,1705380663960,-500.0,0.00022703,2]
[311761817,1705380663969,-712.93,0.00022703,2]
[311761818,1705380663978,-653.77,0.00022703,2]
[311761819,1705380663988,-557.39,0.00022703,2]
[311761820,1705380663998,-589.44072651,0.00022703,2]
[311761821,1705380664007,-500.0,0.00022703,2]
[311761822,1705380664017,-847.27,0.00022703,2]
[311761823,1705380664026,-628.39,0.00022703,2]
[311761824,1705380664036,-1223.05,0.00022703,2]
[311761825,1705380664045,-708.12,0.00022703,2]
[311761826,1705380664055,-500.0,0.00022703,2]
[311761827,1705380664064,-1040.79,0.00022703,2]
[311761828,1705380664074,-948.97,0.00022703,2]
[311761829,1705380664084,-500.0,0.00022703,2]
[311761830,1705380664093,-500.0,0.00022703,2]
[311761831,1705380664102,-387.04697729,0.00022703,2]
[311761832,1705380664112,-500.0,0.00022703,2]
[311761833,1705380664121,-925.84,0.00022703,2]
[311761834,1705380664130,-1120.01,0.00022703,2]
[311761835,1705380664139,-546.18,0.00022703,2]
[311761836,1705380664149,-500.0,0.00022703,2]
[311761837,1705380664158,-500.0,0.00022703,2]
[311761838,1705380664167,-500.0,0.00022703,2]
[311761839,1705380664177,-1804.33,0.00022703,2]
[311761840,1705380664187,-630.59,0.00022703,2]
[311761841,1705380664197,-598.24,0.00022703,2]
[311761842,1705380664206,-500.0,0.00022703,2]
[311761843,1705380664216,-912.36,0.00022703,2]
[311761844,1705380664225,-500.0,0.00022703,2]
[311761845,1705380664235,-1089.56,0.00022703,2]
[311761846,1705380664244,-500.0,0.00022703,2]
[311761847,1705380664254,-500.0,0.00022703,2]
[311761848,1705380664263,-540.25,0.00022703,2]
[311761849,1705380664273,-500.0,0.00022703,2]
[311761850,1705380664282,-2634.95,0.00022703,2]
[311761851,1705380664291,-500.0,0.00022703,2]
[311761852,1705380664301,-601.89,0.00022703,2]
[311761853,1705380664310,-500.0,0.00022703,2]
[311761854,1705380664320,-500.0,0.00022703,2]
[311761855,1705380664329,-519.38,0.00022703,2]
[311761856,1705380664339,-2818.24,0.00022703,2]
[311761857,1705380664348,-500.0,0.00022703,2]
[311761858,1705380664358,-500.0,0.00022703,2]
[311761859,1705380664367,-398.4,0.00022703,2]
[311761860,1705380664376,-590.46,0.00022703,2]
[311761861,1705380664386,-502.33,0.00022703,2]
[311761862,1705380664395,-684.34,0.00022703,2]
[311761863,1705380664404,-16098.4,0.00022703,2]
[311761864,1705380664414,-1130.6,0.00022703,2]
[311761865,1705380664424,-500.0,0.00022703,2]
[311761866,1705380664433,-547.68,0.00022703,2]
[311761867,1705380664443,-500.0,0.00022703,2]
[311761868,1705380664453,-500.0,0.00022703,2]
[311761869,1705380664462,-500.0,0.00022703,2]
[311761870,1705380664472,-826.35,0.00022703,2]
[311761871,1705380664482,-504.47,0.00022703,2]
[311761872,1705380664492,-500.0,0.00022703,2]
[311761873,1705380664501,-583.94,0.00022703,2]
[311761874,1705380664511,-652.76,0.00022703,2]
[311761875,1705380664520,-500.0,0.00022703,2]
[311761876,1705380664529,-676.44,0.00022703,2]
[311761877,1705380664538,-689.05,0.00022703,2]
[311761878,1705380664547,-1776.02,0.00022703,2]
[311761879,1705380664557,-500.0,0.00022703,2]